lending/lending_fUSD_20250917
["ID","MTS","AMOUNT","RATE_DAILY","PERIOD"]
[385942778,1758141045485,-627.73,0.00022271,2]
[385942780,1758141045495,-400.0,0.00022271,2]
[385942782,1758141045504,-400.0,0.00022271,2]
[385942784,1758141045513,-400.0,0.00022271,2]
[385942786,1758141045522,-400.0,0.00022271,2]
[385942788,1758141045532,-400.0,0.00022271,2]
[385942790,1758141045541,-400.0,0.00022271,2]
[385942792,1758141045550,-844.03,0.00022271,2]
[385942794,1758141045560,-400.0,0.00022271,2]
[385942796,1758141045569,-400.0,0.00022271,2]
[385942798,1758141045579,-400.0,0.00022271,2]
[385942800,1758141045588,-400.0,0.00022271,2]
[385942802,1758141045598,-400.0,0.00022271,2]
[385942805,1758141045607,-206.76679297,0.00022271,2]
[385942808,1758141045617,-400.0,0.00022271,2]
[385942810,1758141045626,-400.0,0.00022271,2]
[385942812,1758141045634,-400.0,0.00022271,2]
[385942814,1758141045644,-400.0,0.00022271,2]
[385942816,1758141045653,-400.0,0.00022271,2]
[385942818,1758141045663,-400.0,0.00022271,2]
[385942820,1758141045672,-400.0,0.00022271,2]
[385942822,1758141045681,-400.0,0.00022271,2]
[385942824,1758141045690,-400.0,0.00022271,2]
[385942826,1758141045700,-400.0,0.00022271,2]
[385942828,1758141045709,-400.0,0.00022271,2]
[385942830,1758141045719,-400.0,0.00022271,2]
[385942832,1758141045729,-400.0,0.00022271,2]
[385942834,1758141045738,-57.87644868,0.00022271,2]
[385942837,1758141045758,-342.12355132,0.00022271,2]
[385942839,1758141045769,-400.0,0.00022271,2]
[385942841,1758141045778,-400.0,0.00022271,2]
[385942844,1758141045788,-400.0,0.00022271,2]
[385942846,1758141045797,-400.0,0.00022271,2]
[385942848,1758141045806,-400.0,0.00022271,2]
[385942850,1758141045815,-414.17,0.00022271,2]
[385942852,1758141045825,-400.0,0.00022271,2]
[385942854,1758141045834,-400.0,0.00022271,2]
[385942856,1758141045843,-400.0,0.00022271,2]
[385942858,1758141045852,-400.0,0.00022271,2]
[385942859,1758141045861,-400.0,0.00022271,2]
[385942862,1758141045872,-400.0,0.00022271,2]
[385942864,1758141045882,-400.0,0.00022271,2]
[385942866,1758141045891,-400.0,0.00022271,2]
[385942868,1758141045901,-400.0,0.00022271,2]
[385942870,1758141045911,-181.4701242,0.00022271,2]
[385942872,1758141045921,-1579.63,0.00022271,2]
[385942874,1758141045932,-400.0,0.00022271,2]
[385942876,1758141045941,-682.98,0.00022271,2]
[385942878,1758141045950,-400.0,0.00022271,2]
[385942880,1758141045960,-400.0,0.00022271,2]
[385942882,1758141045970,-400.0,0.00022271,2]
[385942884,1758141045979,-400.0,0.00022271,2]
[385942886,1758141045989,-400.0,0.00022271,2]
[385942888,1758141045999,-1273.25,0.00022271,2]
[385942890,1758141046008,-400.0,0.00022271,2]
[385942892,1758141046018,-400.0,0.00022271,2]
[385942893,1758141046028,-400.0,0.00022271,2]
[385942894,1758141046040,-563.41,0.00022271,2]
[385942896,1758141046049,-472.51,0.00022271,2]
[385942897,1758141046059,-2252.08,0.00022271,2]
[385942898,1758141046068,-400.0,0.00022271,2]
[385942899,1758141046079,-400.0,0.00022271,2]
[385942900,1758141046088,-400.0,0.00022271,2]
[385942901,1758141046098,-400.0,0.00022271,2]
[385942902,1758141046108,-400.0,0.00022271,2]
[385942903,1758141046119,-400.0,0.00022271,2]
[385942904,1758141046129,-400.0,0.00022271,2]
[385942905,1758141046138,-812.72,0.00022271,2]
[385942906,1758141046147,-400.0,0.00022271,2]
[385942907,1758141046157,-400.0,0.00022271,2]
[385942908,1758141046167,-400.0,0.00022271,2]
[385942909,1758141046176,-2489.07,0.00022271,2]
[385942910,1758141046186,-400.0,0.00022271,2]
[385942911,1758141046195,-400.0,0.00022271,2]
[385942912,1758141046205,-400.0,0.00022271,2]
[385942913,1758141046214,-400.0,0.00022271,2]
[385942914,1758141046224,-400.0,0.00022271,2]
[385942915,1758141046233,-400.0,0.00022271,2]
[385942916,1758141046243,-400.0,0.00022271,2]
[385942917,1758141046252,-400.0,0.00022271,2]
[385942918,1758141046262,-400.0,0.00022271,2]
[385942920,1758141046272,-400.0,0.00022271,2]
[385942922,1758141046281,-400.0,0.00022271,2]
[385942924,1758141046291,-434.59501274,0.00022271,2]
[385942927,1758141046301,-1569.57,0.00022271,2]
[385942929,1758141046310,-400.0,0.00022271,2]
[385942930,1758141046320,-789.06,0.00022271,2]
[385942931,1758141046329,-400.0,0.00022271,2]
[385942932,1758141046339,-308.06131174,0.00022271,2]
[385942934,1758141046444,-91.93868826,0.00022271,2]
[385942935,1758141046454,-798.11,0.00022271,2]
[385942936,1758141046463,-400.0,0.00022271,2]
[385942937,1758141046473,-764.85,0.00022271,2]
[385942938,1758141046482,-400.0,0.00022271,2]
[385942939,1758141046492,-400.0,0.00022271,2]
[385942940,1758141046502,-400.0,0.00022271,2]
[385942941,1758141046511,-400.0,0.00022271,2]
[385942942,1758141046521,-400.0,0.00022271,2]
[385942943,1758141046531,-400.0,0.00022271,2]
[385942944,1758141046541,-400.0,0.00022271,2]
[385942945,1758141046550,-400.0,0.00022271,2]
[385942946,1758141046560,-400.0,0.00022271,2]
[385942947,1758141046569,-500.0,0.00022273,2]
[385942948,1758141046579,-500.0,0.00022273,2]
[385942949,1758141046589,-176.54233698,0.00022273,2]
[385942950,1758141046599,-500.0,0.00022273,2]
[385942951,1758141046609,-503.94827961,0.00022273,2]
[385942952,1758141046619,-500.0,0.00022273,2]
[385942953,1758141046629,-500.0,0.00022273,2]
[385942954,1758141046639,-500.0,0.00022273,2]
[385942955,1758141046648,-500.0,0.00022273,2]
[385942956,1758141046657,-195.0,0.00022292,2]
[385942957,1758141046667,-351.73528426,0.00022292,2]
[385942958,1758141046676,-195.0,0.00022295,2]
[385942959,1758141046686,-837.45407563,0.00022348,2]
[385942960,1758141046696,-164.37,0.00022381,2]
[385942961,1758141046705,-383.52,0.00022435,2]
[385942962,1758141046714,-251.01,0.00022435,2]
[385942963,1758141046724,-400.0,0.00022443,2]
[385942964,1758141046734,-400.0,0.00022443,2]
[385942965,1758141046744,-400.0,0.00022443,2]
[385942966,1758141046753,-146.52133526,0.00022443,2]
[385942967,1758141046786,-402.37500394,0.0002227,2]
[385942968,1758141046796,-253.47866474,0.00022443,2]
[385942969,1758141046807,-175.82,0.00022443,2]
[385942970,1758141046816,-400.0,0.00022443,2]
[385942971,1758141046826,-400.0,0.00022443,2]
[385942972,1758141046835,-400.0,0.00022443,2]
[385942973,1758141046845,-730.12,0.00022443,2]
[385942974,1758141046856,-177.21,0.00022443,2]
[385942975,1758141046867,-440.33,0.00022443,2]
[385942976,1758141046877,-400.0,0.00022443,2]
[385942977,1758141046887,-400.0,0.00022443,2]
[385942978,1758141046898,-400.0,0.00022443,2]
[385942979,1758141046909,-359.55901234,0.00022443,2]
[385942980,1758141046919,-108.92747655,0.00022443,2]
[385942982,1758141379842,15000.0,0.0001916,2]
[385942983,1758141379867,15000.0,0.0001916,2]
[385942984,1758141379890,15000.0,0.0001916,2]
[385942985,1758141379914,15000.0,0.0001916,2]
[385942986,1758141379937,15000.0,0.0001916,2]
[385942987,1758141379960,15000.0,0.0001916,2]
[385942988,1758141379985,3743.0,0.0001916,2]
[385942992,1758141605410,151.44,0.00010659,2]
[385942993,1758141605649,151.44,0.00013324,2]
[385942994,1758141605862,151.44,0.00015988,2]
[385942995,1758141606069,151.44,0.00018653,2]
[385942999,1758141704810,611.66385381,0.00019703,2]
[385943007,1758141986806,-150.0,0.00020688,2]
[385943008,1758141986840,-150.0,0.00020688,2]
[385943009,1758141986871,-150.0,0.00020688,2]
[385943010,1758141986902,-150.0,0.00020688,2]
[385943011,1758141986933,-258.0,0.000208,2]
[385943012,1758141986963,-1145.4,0.00021081,2]
[385943013,1758141986995,-224.567482,0.00021167,2]
[385943014,1758141987027,-164.37,0.00021205,2]
[385943015,1758141987058,-666.0,0.00021267,3]
[385943016,1758141987089,-169.4,0.00021267,2]
[385943017,1758141987123,-151.44,0.00021318,2]
[385943018,1758141987152,-672.33,0.00021516,2]
[385943019,1758141987182,-1268.0,0.000218,5]
[385943020,1758141987213,-1200.0,0.00021915,2]
[385943021,1758141987247,-1200.0,0.00021916,2]
[385943022,1758141987278,-400.0,0.00021917,2]
[385943023,1758141987309,-400.0,0.00021917,2]
[385943024,1758141987341,-400.0,0.00021917,2]
[385943025,1758141987373,-400.0,0.00021917,2]
[385943026,1758141987404,-400.0,0.00021917,2]
[385943027,1758141987434,-400.0,0.00021917,2]
[385943028,1758141987465,-400.0,0.00021917,2]
[385943029,1758141987496,-400.0,0.00021917,2]
[385943030,1758141987531,-400.0,0.00021917,2]
[385943031,1758141987562,-400.0,0.00021917,2]
[385943032,1758141987592,-400.0,0.00021917,2]
[385943033,1758141987623,-400.0,0.00021917,2]
[385943034,1758141987654,-500.0,0.00021917,2]
[385943035,1758141987685,-400.0,0.00021917,2]
[385943036,1758141987715,-400.0,0.00021917,2]
[385943037,1758141987747,-400.0,0.00021917,2]
[385943038,1758141987778,-400.0,0.00021917,2]
[385943039,1758141987808,-360.985036,0.00021917,2]
[385943040,1758141987851,-39.014964,0.00021917,2]
[385943041,1758141987861,-110.985036,0.00021917,2]
[385943042,1758141987874,-150.0,0.00021917,2]
[385943043,1758141987887,-139.014964,0.00021917,2]
[385943044,1758141987897,-10.985036,0.00021917,2]
[385943045,1758141987909,-150.0,0.00021917,2]
[385943046,1758141987921,-239.014964,0.00021917,2]
[385943047,1758141987931,-18.985036,0.00021917,2]
[385943048,1758141987951,-381.014964,0.00021917,2]
[385943049,1758141987961,-400.0,0.00021917,2]
[385943050,1758141987970,-364.385036,0.00021917,2]
[385943051,1758141987982,-35.614964,0.00021917,2]
[385943052,1758141987992,-188.952518,0.00021917,2]
[385943053,1758141988007,-164.37,0.00021917,2]
[385943054,1758141988026,-46.677482,0.00021917,2]
[385943055,1758141988035,-400.0,0.00021917,2]
[385943056,1758141988044,-219.322518,0.00021917,2]
[385943057,1758141988071,-169.4,0.00021917,2]
[385943058,1758141988083,-11.277482,0.00021917,2]
[385943059,1758141988093,-140.162518,0.00021917,2]
[385943060,1758141988108,-259.837482,0.00021917,2]
[385943061,1758141988118,-400.0,0.00021917,2]
[385943062,1758141988131,-12.492518,0.00021917,2]
[385943063,1758141988146,-387.507482,0.00021917,2]
[385943064,1758141988155,-400.0,0.00021917,2]
[385943065,1758141988165,-400.0,0.00021917,2]
[385943066,1758141988174,-80.492518,0.00021917,2]
[385943067,1758141988189,-319.507482,0.00021917,2]
[385943068,1758141988198,-400.0,0.00021917,2]
[385943069,1758141988208,-400.0,0.00021917,2]
[385943070,1758141988217,-80.492518,0.00021917,2]
[385943071,1758141988233,-319.507482,0.00021917,2]
[385943072,1758141988242,-400.0,0.00021917,2]
[385943073,1758141988251,-400.0,0.00021917,2]
[385943074,1758141988263,-80.492518,0.00021917,2]
[385943075,1758141988288,-319.507482,0.00021917,2]
[385943076,1758141988300,-80.492518,0.00021917,2]
[385943077,1758141988322,-319.507482,0.00021917,2]
[385943078,1758141988332,-80.492518,0.00021917,2]
[385943079,1758141988351,-319.507482,0.00021917,2]
[385943080,1758141988362,-80.492518,0.00021917,2]
[385943081,1758141988380,-319.507482,0.00021917,2]
[385943082,1758141988391,-80.492518,0.00021917,2]
[385943083,1758141988410,-319.507482,0.00021917,2]
[385943084,1758141988422,-80.492518,0.00021917,2]
[385943085,1758141988436,-319.507482,0.00021917,2]
[385943086,1758141988447,-80.492518,0.00021917,2]
[385943087,1758141988460,-319.507482,0.00021917,2]
[385943088,1758141988472,-80.492518,0.00021917,2]
[385943089,1758141988493,-319.507482,0.00021917,2]
[385943090,1758141988505,-80.492518,0.00021917,2]
[385943091,1758141988532,-319.507482,0.00021917,2]
[385943092,1758141988543,-80.492518,0.00021917,2]
[385943093,1758141988562,-400.0,0.00021917,2]
[385943094,1758141988585,-400.0,0.00021917,2]
[385943095,1758141988599,-400.0,0.00021917,2]
[385943096,1758141988618,-223.677482,0.00021917,2]
[385943097,1758141988631,-276.322518,0.00021917,2]
[385943098,1758141988651,-123.677482,0.00021917,2]
[385943099,1758141988662,-276.322518,0.00021917,2]
[385943100,1758141988677,-123.677482,0.00021917,2]
[385943101,1758141988688,-276.322518,0.00021917,2]
[385943102,1758141988702,-123.677482,0.00021917,2]
[385943103,1758141988713,-276.322518,0.00021917,2]
[385943104,1758141988739,-129.28060574,0.00021917,2]
[385943105,1758141988752,-270.71939426,0.00021917,2]
[385943106,1758141988769,-129.28060574,0.00021917,2]
[385943107,1758141988780,-270.71939426,0.00021917,2]
[385943116,1758142232014,-2718.38,0.00021158,2]
[385943117,1758142232026,-563.45,0.00021167,2]
[385943118,1758142232038,-200.0,0.000217,7]
[385943119,1758142232049,-300.0,0.000217,7]
[385943120,1758142232061,-263.0,0.000217,2]
[385943121,1758142232071,-232.62360865,0.000218,7]
[385943134,1758142232507,-267.37639135,0.000218,7]
[385943136,1758142232518,-700.0,0.000218,7]
[385943138,1758142232529,-1200.0,0.00021899,2]
[385943141,1758142232539,-700.0,0.000219,7]
[385943143,1758142232550,-1000.0,0.000219,7]
[385943145,1758142232561,-248.71531821,0.00021904,2]
[385943147,1758142232572,-804.0,0.00021916,2]
[385943149,1758142232584,-151.0,0.00021917,2]
[385943152,1758142232598,-151.0,0.00021917,2]
[385943154,1758142232608,-162.55885122,0.00021917,2]
[385943156,1758142232619,-129.28060574,0.00021917,2]
[385943158,1758142232631,-400.0,0.00021917,2]
[385943160,1758142232642,-400.0,0.00021917,2]
[385943162,1758142232652,-400.0,0.00021917,2]
[385943165,1758142232664,-400.0,0.00021917,2]
[385943167,1758142232674,-400.0,0.00021917,2]
[385943169,1758142232684,-400.0,0.00021917,2]
[385943171,1758142232695,-400.0,0.00021917,2]
[385943173,1758142232706,-400.0,0.00021917,2]
[385943175,1758142232718,-400.0,0.00021917,2]
[385943178,1758142232728,-441.29531097,0.00021917,2]
[385943180,1758142232739,-400.0,0.00021917,2]
[385943182,1758142232750,-400.0,0.00021917,2]
[385943184,1758142232761,-400.0,0.00021917,2]
[385943186,1758142232773,-400.0,0.00021917,2]
[385943188,1758142232783,-400.0,0.00021917,2]
[385943191,1758142232794,-400.0,0.00021917,2]
[385943193,1758142232804,-400.0,0.00021917,2]
[385943195,1758142232815,-400.0,0.00021917,2]
[385943197,1758142232826,-400.0,0.00021917,2]
[385943199,1758142232836,-400.0,0.00021917,2]
[385943201,1758142232847,-400.0,0.00021917,2]
[385943203,1758142232858,-400.0,0.00021917,2]
[385943206,1758142232868,-400.0,0.00021917,2]
[385943208,1758142232879,-400.0,0.00021917,2]
[385943210,1758142232890,-400.0,0.00021917,2]
[385943212,1758142232901,-400.0,0.00021917,2]
[385943214,1758142232912,-57.01156948,0.00021917,2]
[385943217,1758142232928,-342.98843052,0.00021917,2]
[385943219,1758142232939,-400.0,0.00021917,2]
[385943221,1758142232950,-400.0,0.00021917,2]
[385943224,1758142232961,-400.0,0.00021917,2]
[385943226,1758142232971,-486.71,0.00021917,2]
[385943228,1758142232982,-400.0,0.00021917,2]
[385943230,1758142232992,-400.0,0.00021917,2]
[385943232,1758142233003,-400.0,0.00021917,2]
[385943234,1758142233013,-400.0,0.00021917,2]
[385943237,1758142233023,-400.0,0.00021917,2]
[385943239,1758142233034,-400.0,0.00021917,2]
[385943241,1758142233045,-113.6563449,0.00021917,2]
[385943243,1758142233060,-286.3436551,0.00021917,2]
[385943246,1758142233071,-400.0,0.00021917,2]
[385943248,1758142233082,-506.88,0.00021917,2]
[385943250,1758142233092,-414.62,0.00021917,2]
[385943252,1758142233103,-400.0,0.00021917,2]
[385943254,1758142233114,-462.23,0.00021917,2]
[385943256,1758142233125,-400.0,0.00021917,2]
[385943259,1758142233140,-605.1,0.00021917,2]
[385943261,1758142233151,-400.0,0.00021917,2]
[385943263,1758142233163,-400.0,0.00021917,2]
[385943264,1758142233175,-300.66235354,0.00021917,2]
[385943265,1758142233193,-199.33764646,0.00021917,2]
[385943266,1758142233204,-400.0,0.00021917,2]
[385943267,1758142233216,-400.0,0.00021917,2]
[385943268,1758142233227,-489.09,0.00021917,2]
[385943269,1758142233239,-400.0,0.00021917,2]
[385943270,1758142233251,-42.89576979,0.00021917,2]
[385943271,1758142233267,-362.78606903,0.00021917,2]
[385943272,1758142233279,-400.0,0.00021917,2]
[385943273,1758142233290,-881.48978644,0.00021917,2]
[385943274,1758142233316,-5975.54230206,0.00021917,2]
[385943275,1758142233327,-5616.40869794,0.00021917,2]
[385943444,1758142240100,-1383.59130206,0.00021917,2]
[385943446,1758142240110,-883.44550592,0.00021917,2]
[385943452,1758142240153,-1091.8,0.00021917,2]
[385943724,1758142242926,-269.71449408,0.00021917,2]
[385943726,1758142242936,-873.85779266,0.00021972,2]
[385943728,1758142242947,-500.0,0.00021973,2]
[385943730,1758142242957,-1425.6354,0.00021991,2]
[385943731,1758142242966,-277.3121,0.00021991,2]
[385943732,1758142242976,-143.3616216,0.00022,2]
[385944015,1758142246081,-1046.6083784,0.00022,2]
[385944016,1758142246090,-11062.61531146,0.00022056,2]
[385944017,1758142246163,-784.64923453,0.00022056,2]
[385944018,1758142246173,-695.02295583,0.00022069,2]
[385944019,1758142246183,-1690.39385683,0.00022069,2]
[385944020,1758142246196,-420.68497653,0.00022069,2]
[385944021,1758142246208,-1642.87025,0.00022069,2]
[385944022,1758142246219,-670.3144,0.00022069,2]
[385944023,1758142246231,-467.468,0.00022069,2]
[385944087,1758142692806,158.69,0.00010509,2]
[385944088,1758142693374,158.69,0.00014012,2]
[385944089,1758142693457,158.69,0.00017515,2]
[385944094,1758142792963,1425.0,0.0001961,2]
[385944098,1758142912999,1425.0,0.00019971,2]
[385944107,1758143112326,298.23553901,0.00019751,2]
[385944108,1758143112366,150.0,0.00019751,2]
[385944109,1758143112401,150.0,0.00019751,2]
[385944110,1758143117600,150.0,0.00019751,2]
[385944111,1758143118711,150.0,0.00019751,2]
[385944112,1758143119153,150.0,0.00019751,2]
[385944113,1758143119206,150.0,0.00019751,2]
[385944114,1758143125727,150.0,0.00019751,2]
[385944115,1758143126022,150.0,0.00019751,2]
[385944117,1758143131374,150.0,0.00019751,2]
[385944118,1758143131455,150.0,0.00019751,2]
[385944119,1758143133043,150.0,0.00019751,2]
[385944128,1758143432465,-281.72,0.00020869,2]
[385944129,1758143432475,-222.51,0.00020899,2]
[385944130,1758143432489,-500.0,0.00020912,2]
[385944131,1758143432498,-188.53661305,0.00020946,2]
[385944132,1758143432507,-158.69,0.00021018,2]
[385944133,1758143432517,-329.77,0.00021032,3]
[385944134,1758143432527,-1425.0,0.00021046,2]
[385944135,1758143432536,-215.02,0.00021182,2]
[385944136,1758143432545,-150.0,0.00021198,7]
[385944137,1758143432555,-1192.69,0.00021378,2]
[385944138,1758143432564,-248.0,0.00021456,2]
[385944139,1758143432574,-257.0,0.000216,2]
[385944141,1758143432583,-300.0,0.00021658,2]
[385944143,1758143432593,-1200.0,0.00021658,2]
[385944145,1758143432602,-248.71531821,0.00021659,2]
[385944147,1758143432611,-8565.75555911,0.00021659,2]
[385944149,1758143432621,-2238.75,0.00021672,2]
[385944150,1758143432630,-373.12,0.00021674,2]
[385944152,1758143432639,-167.77,0.00021682,2]
[385944154,1758143432649,-44.85083858,0.00021714,2]
[385944157,1758143432665,-8837.83767622,0.00021714,2]
[385944159,1758143432674,-9211.34798985,0.00021769,2]
[385944161,1758143432683,-1000.0,0.00021793,2]
[385944163,1758143432692,-400.0,0.000218,7]
[385944166,1758143432701,-1500.0,0.00021803,2]
[385944168,1758143432711,-168.0,0.00021819,2]
[385944170,1758143432720,-305.0,0.00021823,2]
[385944172,1758143432730,-9552.16786547,0.00021824,2]
[385944174,1758143432739,-200.0,0.00021861,2]
[385944176,1758143432748,-322.6107,0.00021861,2]
[385944179,1758143432757,-151.0,0.00021861,2]
[385944181,1758143432766,-151.0,0.00021861,2]
[385944183,1758143432775,-151.0,0.00021861,2]
[385944185,1758143432784,-151.0,0.00021861,2]
[385944187,1758143432794,-151.0,0.00021861,2]
[385944189,1758143432803,-151.0,0.00021861,2]
[385944191,1758143432812,-151.0,0.00021861,2]
[385944193,1758143432821,-151.0,0.00021861,2]
[385944195,1758143432831,-151.0,0.00021861,2]
[385944197,1758143432839,-151.0,0.00021861,2]
[385944199,1758143432849,-151.0,0.00021861,2]
[385944201,1758143432858,-151.0,0.00021861,2]
[385944203,1758143432868,-151.0,0.00021861,2]
[385944205,1758143432879,-151.0,0.00021861,2]
[385944207,1758143432889,-151.0,0.00021861,2]
[385944209,1758143432898,-151.0,0.00021861,2]
[385944211,1758143432907,-151.0,0.00021861,2]
[385944213,1758143432918,-151.0,0.00021861,2]
[385944215,1758143432927,-200.0,0.00021861,2]
[385944217,1758143432936,-151.0,0.00021861,2]
[385944219,1758143432948,-151.0,0.00021861,2]
[385944221,1758143432957,-151.0,0.00021861,2]
[385944223,1758143432966,-151.0,0.00021861,2]
[385944225,1758143432976,-151.0,0.00021861,2]
[385944227,1758143432985,-151.0,0.00021861,2]
[385944229,1758143432994,-151.0,0.00021861,2]
[385944231,1758143433003,-151.0,0.00021861,2]
[385944233,1758143433013,-151.0,0.00021861,2]
[385944235,1758143433022,-151.0,0.00021861,2]
[385944237,1758143433032,-151.0,0.00021861,2]
[385944239,1758143433041,-151.0,0.00021861,2]
[385944241,1758143433050,-151.0,0.00021861,2]
[385944243,1758143433060,-151.0,0.00021861,2]
[385944245,1758143433069,-14053.29050623,0.00021868,2]
[385944247,1758143433078,-13420.88441625,0.00021869,2]
[385944249,1758143433088,-25562.69148351,0.00021872,2]
[385944297,1758143433594,-462.545,0.00021872,2]
[385944471,1758143438068,-14057.86237031,0.00021872,2]
[385944472,1758143438282,-500.0,0.00021872,2]
[385944473,1758143438294,-6271.55225996,0.00021872,2]
[385944474,1758143438305,-400.0,0.00021872,2]
[385944475,1758143438338,-2702.86530885,0.00021872,2]
[385944564,1758143440235,-9633.34147737,0.00021872,2]
[385944565,1758143440245,-678.41109646,0.00021873,2]
[385944566,1758143440254,-500.0,0.00021878,2]
[385944567,1758143440264,-500.0,0.00021878,2]
[385944568,1758143440274,-385.82907017,0.00021878,2]
[385944569,1758143440283,-500.0,0.00021878,2]
[385944570,1758143440292,-500.0,0.00021878,2]
[385944571,1758143440302,-9905.5980765,0.00021879,2]
[385944572,1758143440311,-800.0,0.000219,7]
[385944573,1758143440320,-1502.79951242,0.000219,2]
[385944574,1758143440330,-185.51,0.00021906,2]
[385944575,1758143440339,-185.51,0.00021907,2]
[385944576,1758143440348,-628.19,0.00021907,2]
[385944577,1758143440358,-217.360132,0.00021916,2]
[385944578,1758143440367,-151.0,0.00021916,2]
[385944579,1758143440377,-217.360132,0.00021916,2]
[385944580,1758143440386,-574.969999,0.00021916,2]
[385944581,1758143440396,-217.360132,0.00021916,2]
[385944582,1758143440405,-151.0,0.00021916,2]
[385944583,1758143440417,-574.969999,0.00021916,2]
[385944585,1758143440425,-151.0,0.00021916,2]
[385944586,1758143440434,-217.360132,0.00021916,2]
[385944587,1758143440445,-574.969999,0.00021916,2]
[385944588,1758143440456,-151.0,0.00021916,2]
[385944589,1758143440465,-151.0,0.00021916,2]
[385944590,1758143440474,-574.969999,0.00021916,2]
[385944591,1758143440485,-151.0,0.00021916,2]
[385944592,1758143440495,-151.0,0.00021916,2]
[385944593,1758143440504,-151.0,0.00021916,2]
[385944594,1758143440514,-151.0,0.00021916,2]
[385944595,1758143440525,-152.824391,0.00021916,2]
[385944596,1758143440534,-151.0,0.00021916,2]
[385944597,1758143440543,-156.674751,0.00021916,2]
[385944598,1758143440553,-151.0,0.00021916,2]
[385944599,1758143440562,-151.0,0.00021916,2]
[385944601,1758143440571,-151.0,0.00021916,2]
[385944604,1758143440581,-29730.8683754,0.00021917,2]
[385944608,1758143440590,-1991.82,0.00021917,2]
[385944611,1758143440599,-640.14,0.00021917,2]
[385944613,1758143440608,-400.0,0.00021917,2]
[385944615,1758143440617,-603.33,0.00021917,2]
[385944616,1758143440627,-528.54,0.00021917,2]
[385944617,1758143440636,-151.0,0.00021917,2]
[385944618,1758143440645,-151.0,0.00021917,2]
[385944619,1758143440655,-151.0,0.00021917,2]
[385944620,1758143440664,-151.0,0.00021917,2]
[385944621,1758143440674,-151.0,0.00021917,2]
[385944622,1758143440684,-3502.572629,0.00021917,2]
[385944623,1758143440696,-3502.572629,0.00021917,2]
[385944624,1758143440705,-151.0,0.00021917,2]
[385944625,1758143440716,-151.0,0.00021917,2]
[385944626,1758143440726,-3502.572629,0.00021917,2]
[385944627,1758143440737,-3502.572629,0.00021917,2]
[385944628,1758143440750,-151.0,0.00021917,2]
[385944629,1758143440761,-183.495019,0.00021917,2]
[385944630,1758143440772,-151.0,0.00021917,2]
[385944631,1758143440783,-1815.11644,0.00021917,2]
[385944632,1758143440792,-1815.11644,0.00021917,2]
[385944633,1758143440802,-1815.11644,0.00021917,2]
[385944634,1758143440811,-1815.11644,0.00021917,2]
[385944635,1758143440821,-151.0,0.00021917,2]
[385944636,1758143440831,-2071.420839,0.00021917,2]
[385944637,1758143440840,-151.0,0.00021917,2]
[385944638,1758143440850,-2071.420839,0.00021917,2]
[385944639,1758143440860,-2071.420839,0.00021917,2]
[385944640,1758143440873,-151.0,0.00021917,2]